Cogmind - Beta 15 @@@ ROGUE MODE // 2025.10.07 @ 23:16:40 Player: weedlord420 Result: Destroyed by DY-IJV(R) with Subdweller Shrapnel Launcher Performance ------------- Evolutions (0) 0 Regions Visited (2) 400 Robots Destroyed (37) 185 Value Destroyed (732) 732 Prototype IDs (0) 0 Alien Tech Used (0) 0 Bonus (0) 0 TOTAL SCORE: 1317 Bonus ------- None Cogmind --------- Core Integrity 0/250 Matter 172/300 Energy 170/170 System Corruption 0% Temperature Cool (0) Movement Rolling (380) Ox20 Location -10/Subcaves Parts ------- > --- POWER (1) -------- Makeshift Power Source > --- PROPULSION (2) --- Wheel > --- UTILITY (2) ------ Humpback > --- WEAPON (2) ------- Battle Rifle Subdweller Machine Gun > --- INVENTORY (35) --- Subdweller Power Source Subdweller Power Source Subdweller Power Source Makeshift Leg Subdweller Monowheel Large Storage Unit Scrap Shield Makeshift System Shield Riot Gun Subdweller Laser Subdweller Machine Gun Subdweller Machine Gun Subdweller Machine Gun Grenade Launcher Grenade Launcher Multitool Peak State ------------ > --- POWER ------------ Makeshift Power Source > --- PROPULSION ------- Makeshift Leg Wheel > --- UTILITY ---------- Large Storage Unit Improved Targeting Computer > --- WEAPON ----------- Battle Rifle Subdweller Machine Gun > --- INVENTORY -------- Subdweller Power Source Subdweller Power Source Subdweller Power Source Subdweller Monowheel Scrap Shield Makeshift System Shield Heavy EM Pulse Gun Subdweller Laser Subdweller Machine Gun Subdweller Machine Gun Subdweller Machine Gun Grenade Launcher Grenade Launcher Multitool [Rating: 19] Favorites ----------- Power Light Ion Engine Engine Light Ion Engine Propulsion Wheel Treads Light Treads Leg Makeshift Leg Wheel Wheel Utility Large Storage Unit Device Structural Scanner Storage Large Storage Unit Processor Improved Targeting Computer Protection Propulsion Shielding Weapon Subdweller Machine Gun Energy Gun Heavy EM Pulse Gun Energy Cannon Beam Cannon Ballistic Gun Subdweller Machine Gun Launcher Grenade Launcher Build | -11 -10 -10 ------- Run | Yrd Mat Sub Slots Evolved . | . . . Power . | . . . Propulsion . | . . . Utility . | . . . Weapon . | . . . Parts Attached 37 | 6 13 18 Power 4 | 1 1 2 Engine 4 | 1 1 2 Core . | . . . Reactor . | . . . Propulsion 9 | 3 1 5 Treads 2 | 1 1 . Leg 1 | . . 1 Wheel 6 | 2 . 4 Hover . | . . . Flight . | . . . Utility 10 | 1 5 4 Device 1 | . . 1 Storage 5 | 1 3 1 Processor 3 | . 2 1 Hackware . | . . . Protection 1 | . . 1 Artifact . | . . . Weapon 14 | 1 6 7 Energy Gun 2 | . 2 . Energy Cannon 1 | . . 1 Ballistic Gun 9 | 1 2 6 Ballistic Cannon . | . . . Launcher 2 | . 2 . Special Weapon . | . . . Impact Weapon . | . . . Slashing Weapon . | . . . Piercing Weapon . | . . . Special Melee Weapon . | . . . Unidentified Prototypes . | . . . Parts Lost 7 | . . 7 Power 1 | . . 1 Propulsion 3 | . . 3 Utility 1 | . . 1 Weapon 2 | . . 2 Highest Loss Streak 6 | . . 6 To Critical Strikes 1 | . . 1 Average Backups 12 | 3 11 13 Power 1 | . 1 2 Propulsion 1 | 1 2 1 Utility 2 | . 2 2 Weapon 6 | 1 5 6 Tool/Special . | . . . Unused Backups 11 | . 1 10 Power 3 | . . 3 Propulsion . | . . . Utility 3 | . . 3 Weapon 4 | . 1 3 Tool/Special 1 | . . 1 Average Slot Usage (%) 96 | . 94 97 Engine 14 | . 14 14 Treads 6 | . 4 8 Leg 1 | . . 1 Wheel 19 | . 23 17 Device 1 | . . 2 Storage 14 | . 14 14 Processor 9 | . 11 7 Energy Gun 1 | . 3 . Ballistic Gun 25 | . 20 27 Peak Build Rating 19 | 5 11 19 Average Rating 11 | 3 8 13 On Entrance 4 | . 5 9 Naked Turns . | . . . Heaviest Build 210 | 10 29 210 Greatest Support 40 | 26 40 40 Greatest Overweight (x) 20 | . 1 20 Average Overweight (x) . | . . 1 Largest Inventory Capacity 35 | 8 15 35 Average Capacity 16 | 6 14 17 Most Carried 17 | 5 15 17 Average Carried 13 | 4 11 14 Final Capacity 35 | 8 15 35 Final Carried 17 | 5 15 17 Class Distribution -------------------- 66% | Mutant 24% | Scavenger-Mutant 8% | Hauler-Mutant Dominant Class ---------------- Mutant | -10/Materials Mutant | -10/Subcaves Resources | -11 -10 -10 ----------- Run | Yrd Mat Sub Matter Collected 1064 | 287 286 491 Remotely . | . . . Salvage Created 1142 | 87 593 462 Parts 83 | 1 46 36 Haulers Intercepted 2 | . 2 . Recyclers Shooed 1 | . 1 . Parts Field Recycled . | . . . Retrieved Matter . | . . . Parts Self-Destructed 6 | . . 6 Prevented . | . . . Kills | -11 -10 -10 ------- Run | Yrd Mat Sub Combat Hostiles Destroyed 28 | . 14 14 Guns 17 | . 9 8 Cannons 2 | . . 2 AOE 8 | . 4 4 Classes Destroyed 9 | 1 6 2 Worker 1 | . 1 . Builder 1 | . 1 . Hauler 2 | . 2 . Recycler 3 | 1 2 . Watcher 2 | . 2 . Swarmer 15 | . 11 4 Grunt 3 | . 3 . Artisan 2 | . . 2 Subdweller 10 | . . 10 Best Kill Streak 5 | 1 5 5 Combat Bots Only 5 | . 3 5 Max Kills in Single Turn 3 | 1 3 2 Gunslinging 1 | . 1 . Exploded 2 | . 2 2 Melee . | . . . Uniques/NPCs Destroyed . | . . . Combat | -11 -10 -10 -------- Run | Yrd Mat Sub Hostile Shots Fired 120 | . 46 74 Missed 40 | . 17 23 Hits 80 | . 29 51 Projectile 80 | . 29 51 AOE 1 | . . 1 Critical Strikes 1 | . . 1 Damage Taken 1339 | . 281 1058 Core 271 | . 84 187 Absorbed by Shields . | . . . Redirected to Shielding 33 | . . 33 Core Remaining (%) 100 | 100 . . Volleys Fired 111 | 9 40 62 Largest 2 | 1 2 2 Hottest 90 | 20 90 90 Shots Fired 191 | 9 79 103 Gun 174 | 9 73 92 Cannon 7 | . . 7 Launcher 10 | . 6 4 Special . | . . . Kinetic 144 | 9 43 92 Thermal 7 | . . 7 Explosive 10 | . 6 4 Electromagnetic 30 | . 30 . Robot Hit Streak 42 | 6 11 42 Robot Miss Streak 3 | 1 3 1 Penetration Max . | . . . Secondary Targets 1 | . 1 . Max Gunslinging Chain 1 | . 1 . Shots Hit Robots 125 | 8 42 75 Core Hits 57 | 2 26 29 Critical Kills 1 | . . 1 Critical Parts Destroyed 1 | . . 1 Critical Strikes 6 | . 2 4 Destroy 4 | . . 4 Corrupt 2 | . 2 . Melee Attacks . | . . . Impact . | . . . Slashing . | . . . Piercing . | . . . Sneak Attacks . | . . . Combat Hostiles . | . . . Follow-up Attacks . | . . . Damage Inflicted 2668 | 105 1134 1429 Guns 1768 | 105 601 1062 Cannons 123 | . . 123 Explosions 777 | . 533 244 Melee . | . . . Ramming . | . . . Kinetic 1507 | 105 340 1062 Thermal 171 | . 48 123 Explosive 729 | . 485 244 Electromagnetic 261 | . 261 . Impact . | . . . Slashing . | . . . Piercing . | . . . Highest Corruption . | . . . Average Corruption . | . . . Corruption Purged . | . . . Corruption Blocked . | . . . Overload Shots . | . . . Overflow Damage 28 | . 22 6 Projectiles . | . . . Explosions 28 | . 22 6 Melee . | . . . Knockbacks . | . . . Impact . | . . . Kinetic . | . . . Secondary . | . . . Self-Inflicted Damage 60 | . 21 39 Shots 3 | . 1 2 Rammed . | . . . Targets Rammed . | . . . Kicked . | . . . Crushed . | . . . Highest Temperature 244 | . 244 . Average Temperature 107 | . 107 . Received Heat Transfer 72 | . 48 24 Effects 5 | . 5 . Energy Bleed 3 | . 3 . Interference 2 | . 2 . Siege Activations . | . . . Martial Activations . | . . . Shielding Activations . | . . . Robots Disrupted . | . . . Combat Hostiles . | . . . Robots Corrupted 1 | . 1 . Combat Hostiles 1 | . 1 . Parts Fried 2 | . 2 . Impact Corruptions . | . . . Robots Melted . | . . . Combat Hostiles . | . . . Parts Melted . | . . . Heat Transferred 309 | . 50 259 Parts Sabotaged . | . . . Parts Stolen . | . . . Parts Stripped . | . . . Power Chain Reactions 1 | . 1 . Alert | -11 -10 -10 ------- Run | Yrd Mat Sub Maximum Alert Level 1 | . 1 . Low Security (%) 98 | 100 98 . Level 1 1 | . 1 . Level 2 . | . . . Level 3 . | . . . Level 4 . | . . . Level 5 . | . . . High Security . | . . . Max Security . | . . . Peak Influence 256 | 5 256 . Initial . | . . . Average 87 | . 94 . Influence Increases 658 | 5 543 110 Destroy 0b10 Robot/C 360 | . 280 80 Destroy 0b10 Robot/NC 45 | 5 40 . Destroy Leader 48 | . 48 . Successful Hack 16 | . 16 . Disable Machine 30 | . 30 . Destroy Structure 24 | . 24 . Lose Combat Pursuer 135 | . 105 30 Influence Decreases 658 | 5 440 213 Entered New Map 51 | . . 51 Time Decay 447 | 5 290 152 Lost Ally 10 | . . 10 Purge Threat 150 | . 150 . Squads Dispatched . | . . . Investigation . | . . . Extermination . | . . . Reinforcement . | . . . Assault . | . . . Garrison . | . . . Intercept . | . . . Searches Triggered . | . . . Construction Impeded . | . . . Haulers Reinforced . | . . . Active Scanning Responses . | . . . Cargo Convoy Interrupts . | . . . Stealth | -11 -10 -10 --------- Run | Yrd Mat Sub Distress Signals 2 | . 2 . Communications Jammed . | . . . Distress Signals . | . . . Times Spotted 43 | . 27 16 Peak Tracking Total 5 | . 5 5 Tactical Retreats 5 | . 4 1 Traps | -11 -10 -10 ------- Run | Yrd Mat Sub Traps Triggered . | . . . Indirectly . | . . . Trap Hack Attempts . | . . . Triggered . | . . . Disarmed . | . . . Reprogrammed . | . . . Reused . | . . . Traps Extracted . | . . . Installed . | . . . Triggered . | . . . Machines | -11 -10 -10 ---------- Run | Yrd Mat Sub Machines Disabled 2 | . 2 . Max in Single Turn 1 | . 1 . Machines Repaired . | . . . Machines Dismantled . | . . . Machines Sabotaged . | . . . Overloaded Fab Kills . | . . . Hacking | -11 -10 -10 --------- Run | Yrd Mat Sub Machines Accessed 11 | . 8 3 Terminals 8 | . 8 . Fabricators . | . . . Repair Stations . | . . . Recycling Units . | . . . Scanalyzers . | . . . Garrison Access . | . . . Total Hacks 27 | . 20 7 Successful 14 | . 7 7 Failed 13 | . 13 . Catastrophic 4 | . 4 . Database Lockouts . | . . . Manual 18 | . 18 . Terminals 20 | . 20 . Fabricators . | . . . Repair Stations . | . . . Recycling Units . | . . . Scanalyzers . | . . . Garrison Access . | . . . Terminal Hacks 10 | . 3 7 Record 5 | . . 5 Open Door 1 | . . 1 Terminal Index 1 | . 1 . Unreport Threat 1 | . 1 . Locate Traps 1 | . 1 . Release Object 1 | . . 1 Fabricator Hacks . | . . . Repair Station Hacks . | . . . Recycling Unit Hacks . | . . . Scanalyzer . | . . . Garrison Access Hacks . | . . . Unauthorized Hacks 4 | . 4 . Terminals 4 | . 4 . Assimilate 2 | . 2 . Botnet 1 | . 1 . Operators 1 | . 1 . Fabricators . | . . . Repair Stations . | . . . Recycling Units . | . . . Scanalyzers . | . . . Garrison Access . | . . . Data Cores Recovered . | . . . Used . | . . . Hacking Detections 8 | . 8 . Full Trace Events . | . . . Feedback Events . | . . . Feedback Blocked . | . . . Robot Schematics Acquired . | . . . Robots Built . | . . . Authchips . | . . . Time . | . . . Total Robot Build Rating . | . . . Part Schematics Acquired . | . . . Parts Built . | . . . Authchips . | . . . Time . | . . . Total Part Build Rating . | . . . Parts Repaired . | . . . Time . | . . . Parts Recycled . | . . . Recycled Matter . | . . . Retrieved Matter . | . . . Retrieved Components . | . . . Parts Scanalyzed . | . . . Part Schematics Acquired . | . . . Parts Damaged . | . . . Bothacking | -11 -10 -10 ------------ Run | Yrd Mat Sub Used RIF Installer . | . . . Robots Hacked . | . . . Non-combat . | . . . Combat . | . . . Robot Hacks Applied . | . . . Relay Couplers Released . | . . . Fabnet Peak Effective % . | . . . Robots Rewired . | . . . Allies Hacked . | . . . Hacks Repelled . | . . . Allies | -11 -10 -10 -------- Run | Yrd Mat Sub Total Allies 1 | . 1 . Largest Group 1 | . 1 1 Highest-Rated Group 10 | . 10 10 Highest-Rated Ally 10 | . 10 10 Total Orders . | . . . Ally Attacks . | . . . Total Damage . | . . . Kills . | . . . Allies Corrupted . | . . . Allies Melted . | . . . Intel | -11 -10 -10 ------- Run | Yrd Mat Sub Active Infowar (turns) 361 | . . 361 Structural 361 | . . 361 Robot Analysis Total . | . . . Derelict Logs Recovered 1 | . . 1 Drone Launches . | . . . Drone Recoveries . | . . . Exploration | -11 -10 -10 ------------- Run | Yrd Mat Sub Turns Passed 2643 | 71 879 1693 Spaces Moved 1722 | 38 616 1068 Core 12 | 12 . . Treads 264 | 4 28 232 Legs . | . . . Wheels 1446 | 22 588 836 Hover . | . . . Flight . | . . . Fastest Speed 50 | 50 90 95 Average Speed 119 | 84 103 130 Slowest Speed 380 | 160 160 380 Overloaded Moves . | . . . Propulsion Burnouts . | . . . Robots Hopped . | . . . Potential Cave-ins . | . . . Cave-ins Triggered . | . . . Exploration Rate (%) 51 | 3 97 55 Regions Visited 2 Branch Regions 1 Pre-discovered Areas 1 | . . 1 Known Exits Taken . | . . . Unknown Exits Taken 2 | 1 1 . Scrap Searched . | . . . Spaces Dug 7 | . . 7 Terrain Destroyed 43 | . 21 22 Melee . | . . . Projectile . | . . . AOE 43 | . 21 22 Terrain Rammed . | . . . Walls Destroyed . | . . . Machines Disabled . | . . . Actions | -11 -10 -10 --------- Run | Yrd Mat Sub Total 2107 | 65 773 1269 Wait 144 | 6 73 65 Move 1720 | 37 615 1068 Hop . | . . . Pick Up 56 | 7 18 31 Fast Attach 4 | 3 . 1 Attach 12 | 2 3 7 Detach . | . . . Swap 37 | 1 19 17 Drop 23 | . 5 18 Fire 111 | 9 40 62 Melee . | . . . Ram . | . . . Kick . | . . . Crush . | . . . Escape Stasis . | . . . Rewire . | . . . Trap . | . . . Miscellaneous . | . . . Route ------- -11/Scrapyard -10/Materials (discovered 6 exits: [*Mat x3] / [*Min x2] / *Sub) -10/Subcaves (discovered 3 exits: [*Mat x2] / [Rec]) History --------- Turn | Location | Event 12 | -11/Scrapyard | Discovered new exit (range 16) 72 | -11/Scrapyard | Entered Materials 212 | -10/Materials | Discovered new exit (range 16) 306 | -10/Materials | Build established: Mutant 468 | -10/Materials | Discovered new exit (range 15) 722 | -10/Materials | Discovered new exit (range 14) 791 | -10/Materials | Discovered new exit (range 16) 884 | -10/Materials | Discovered new exit (range 4) 929 | -10/Materials | Discovered new exit (range 7) 951 | -10/Materials | Entered Subcaves 951 | -10/Subcaves | Accompanied by 1 ally 1017 | -10/Subcaves | Discovered new exit (range 12) 1221 | -10/Subcaves | Discovered new exit (range 14) 1307 | -10/Subcaves | Disturbed a concealed Subdweller 1519 | -10/Subcaves | Core integrity fell below 50% 1544 | -10/Subcaves | Core integrity fell below 20% 1570 | -10/Subcaves | Lost 6 parts (1p2n1u2w) 1694 | -10/Subcaves | Shifting Twisted Machinery released Mak. System Shield 1698 | -10/Subcaves | Shifting Twisted Machinery released Mak. Power Source 1798 | -10/Subcaves | Build established: Scavenger-Mutant 1849 | -10/Subcaves | Visited Clippyterm 1853 | -10/Subcaves | Learned location of Section 7 (-2) 1853 | -10/Subcaves | Learned 40 Factory zone layouts 2304 | -10/Subcaves | Discovered new exit (range 6) 2644 | -10/Subcaves | Destroyed by DY-IJV(R) with Subdweller Shrapnel Launcher Last Messages --------------- 02436_ Acquired Multitool. 02440_ Acquired Sub. Power Source. 02445_ Acquired Sub. Machine Gun. 02454_ Acquired Broken Sub. Monowheel. 02462_ Acquired Grenade Launcher. 02467_ Acquired Mak. System Shield. 02472_ Acquired Grenade Launcher. 02477_ Acquired Sub. Machine Gun. 02482_ Acquired Sub. Laser. 02486_ Acquired Riot Gun. 02494_ J2-2OW(u) tweaks Twisted Machinery. 02506_ Acquired Sub. Power Source. 02507_ J2-2OW(u) suffers critical hit (Destroy). 02507_ Destroyed Multitool. 02516_ J2-2OW(u) cries out in pain. 02516_ J2-2OW(u) destroyed. 02534_ Acquired 21 matter. 02542_ Acquired Wheel. 02627_ DY-IJV(R): "MADSUB!" 02644_ Wheel destroyed. Map ----- +----------------------------------------------------+ | ????????????????????????????????????????????????? | | ????????????????????????????????????????????????? | | ????????????????????????????????????????????????? | | ????????????????????????????????????????????????? | | ????????????????????????????????????????????????? | | ????????????????????????????????????????????????? | | ????????????????????????????????????????????????? | | ????????????????????????????????????????????????? | | ????????????????????????????????????????????????? | | ????????????????????????????????????????????????? | | ????????????????????????????????????????????????? | | #####???????????????????????????????????????????? | | #" ##???###????????????????????????????????????? | | ##??# #??####???????###????????????????????? | | """" #### #### ######### #????????????????????? | | ## ## # ## # #????????????????????? | | ######???????????????? | | =[ #### " #???????????????? | | ### # #?##### # #"" ""##???????????????? | | ##?## # ##????# ###""" "###????????????????? | | #???# ### ###?###"" """ ""#??????????????????? | | #???###### ### # <"" " "" ##?????????????????? | | #???????# "" "" #?????????????????? | | #???????## O [ """ ##?????????????????? | | #????????# # ## # # """" #??????????????????? | | #????????######## ## "# @ ##??????????????????? | | #???????????????# ##R ###??????????????????? | | ????????????????# "" " #??????????????????? | | ????????????????# "" """#??????????????????? | | #???????????????# """ ## " #??????????????????? | | #???????????????##"""##### #??????????????????? | | #????????????????#" #????# ##?????????????????? | | ?????????????????########## ###???????????????? | | ????????????????????# #???????????????? | | ????????????????????# #???????????????? | | ????????????????????# ##???????????????? | | ????????????????????# #????????????????? | | ?????????????????#### #????????????????? | | ?????????????????# #????????????????? | | ?????????????????## ##????????????????? | | ??????????????????## #?????????????????? | | ???????????????????## ##?????????????????? | | ????????????????????## #??????????????????? | | ?????????????????????## #??????????????????? | | ??????????????????????# ##??????????????????? | | ?????????????????????# #???????????????????? | | ???????????????????? #??????????????????? | | ??????????????????? #??????????????????? | | ??????????????????# #??????????????????? | | ??????????????????## ?????????????????? | +----------------------------------------------------+ Best States ------------- Heat Dissipation 25 Energy Generation 15 Energy Capacity 250 Matter Stores 300 Matter Capacity 300 Sight Range 16 Terrain Scan Density 10 Propulsion Shielding 33 Evasion (%) 50 Targeting Accuracy 6 Recoil Reduction 2 Item Schematics ----------------- None Robot Schematics ------------------ None Fabricated ------------ Nothing Repaired ---------- Nothing Alien Tech Used ----------------- None Achievements -------------- None Challenges ------------ None Game ------ Seed IntegritySpreadAutohacker Manual? 0 Play Time 00:22:53 Cumulative 100.0 hours Start 2025.10.07 @ 22:59:14 End 2025.10.07 @ 23:16:40 Sessions 1 Manual Loads 0 Difficulty Rogue Special Mode None Game No. 160 Rogue 159 Adventurer 1 Explorer 0 Win Type - Total 1 Types 0/0/0/1/0/0/0/0/0/0 Lore% 55 Gallery% 52 Achievement% 49 Wizard Run 0 Options --------- Layout 1 ASCII 0 Keyboard 0 Movement Mouse Keybinds 0 Fullscreen 1 Font 24/Smallcaps Map View 50x35 Zoom Use 0% Tactical HUD 1 Map Filters NONE Filters NONE Steam 1 RUN: 7f6a09ae-e391-4288-aa27-cdbb6f873670